{"text_format":"2","workbook":"xlsx","n_sheets":1,"sheets":["2016배정표"],"not_rendered":{"charts":0,"images":0,"macros":0,"external_links":0,"defined_names":1,"comments":0,"pivot_tables":0},"unopened":[],"bounds":{"document_bytes":16777216,"sheet_cells":100000,"run_cost":"one","rows_first":2000,"rows_last":500,"rows_between":2000,"halvings":0,"cell_chars":16384,"cell_head_chars":4096},"cells_cut":0,"cells_raw":0,"read":"whole","date_system":"1900"}

{"sheet":"2016배정표","index":0,"n_rows":184,"n_cols":8,"rows_kept":184,"cut":false,"hidden":false,"merged":[[2,1,3,1],[66,0,111,0],[112,0,131,0],[2,0,3,0],[4,0,33,0],[34,0,37,0],[38,0,65,0]]}
["2016년도 정부초청외국인 대학원장학생 국가별 인원배정표(안)"]
[]
["지역","국가명","2016 국가별 배정인원"]
[null,null,"공관 배정","입양 인배정","대학 배정","지방대학 배정","합계","비고"]
["아주","네팔",3,null,5,2,{"$f":"SUM(C5:F5)","v":10}]
[null,"대만(대표부)",4,null,4,1,{"$f":"SUM(C6:F6)","v":9}]
[null,"동티모르",3,null,1,null,4]
[null,"라오스",5,null,3,null,8]
[null,"말레이시아",5,null,5,3,13]
[null,"몽골",5,null,6,4,15]
[null,"미얀마",6,null,5,3,14]
[null,"방글라데시",5,null,5,2,12]
[null,"부탄(방글라데시 겸임국)",null,null,1,null,1]
[null,"베트남",10,null,8,4,22,"국제협력선도대학 3명 포함"]
[null,"브루나이",3,null,null,null,3]
[null,"스리랑카",5,null,4,1,10]
[null,"몰디브(스리랑카 겸임국)",null,null,1,null,1]
[null,"싱가포르",3,null,2,null,5]
[null,"아프가니스탄",3,null,null,null,3]
[null,"인도",8,null,5,1,14]
[null,"인도네시아",10,null,8,4,22,"국제협력선도대학 3명 포함"]
[null,"일본",9,null,2,null,11]
[null,"중국",24,null,null,null,24]
[null,"캄보디아",4,null,6,3,13]
[null,"태국",5,null,7,2,14]
[null,"파키스탄",5,null,5,3,13]
[null,"파푸아뉴기니",1,null,null,null,1]
[null,"솔로몬군도(파푸아뉴기니 겸임국)",null,null,1,null,1]
[null,"피지",2,null,null,null,2]
[null,"필리핀",5,null,6,3,14]
[null,"홍콩(홍콩총영사관)",2,null,null,null,2]
[null,"호주",2,1,1,null,4]
[null,"뉴질랜드",2,null,1,null,3]
[null,"소계",{"$f":"SUM(C5:C33)","v":139},{"$f":"SUM(D5:D33)","v":1},{"$f":"SUM(E5:E33)","v":92},{"$f":"SUM(F5:F33)","v":36},{"$f":"SUM(G5:G33)","v":268}]
["북미","미국",15,3,4,null,{"$f":"SUM(C35:F35)","v":22}]
[null,"캐나다",3,1,1,null,{"$f":"SUM(C36:F36)","v":5}]
[null,"캐나다(퀘벡) (몬트리올총영사관)",2,null,null,null,2]
[null,"소계",{"$f":"SUM(C35:C37)","v":20},{"$f":"SUM(D35:D37)","v":4},5,0,29]
["중남미","과테말라",2,null,null,null,{"$f":"SUM(C39:F39)","v":2}]
[null,"니카라과",1,null,null,null,{"$f":"SUM(C40:F40)","v":1}]
[null,"도미니카공화국",2,null,2,null,4]
[null,"바하마(도미니카공화국 겸임국)",2,null,null,null,2]
[null,"세인트키츠네비스(도미니카공화국 겸임국)",1,null,null,null,{"$f":"SUM(C43:F43)","v":1},"신규배정"]
[null,"아이티(도미니카공화국 겸임국)",1,null,null,null,1]
[null,"멕시코",4,null,5,2,11]
[null,"벨리즈(멕시코 겸임국)",null,null,1,null,1]
[null,"베네수엘라",3,null,null,null,3]
[null,"가이아나(베네수엘라 겸임국)",1,null,null,null,1]
[null,"수리남(베네수엘라 겸임국)",1,null,null,null,1]
[null,"볼리비아",2,null,1,null,3]
[null,"브라질",6,null,5,2,13]
[null,"아르헨티나",3,null,1,null,4]
[null,"에콰도르",6,null,null,null,6]
[null,"엘살바도르",3,null,null,null,3]
[null,"온두라스",2,null,null,null,2]
[null,"우루과이",2,null,null,null,2]
[null,"자메이카",2,null,null,null,2]
[null,"칠레",3,null,2,null,5]
[null,"코스타리카",2,null,2,null,4]
[null,"콜롬비아",4,null,3,null,7]
[null,"트리니다드토바고",2,null,null,null,2]
[null,"바베이도스(트리니다드토바고 겸임국)",1,null,null,null,1]
[null,"파나마",4,null,null,null,4]
[null,"파라과이",2,null,1,null,3]
[null,"페루",5,null,3,null,8]
[null,"소계",{"$f":"SUM(C39:C65)","v":67},null,{"$f":"SUM(E39:E65)","v":26},{"$f":"SUM(F39:F65)","v":4},{"$f":"SUM(G39:G65)","v":97}]
["구주","그리스",2,null,1,null,{"$f":"SUM(C67:F67)","v":3}]
[null,"알바니아(그리스 겸임국)",1,null,null,null,{"$f":"SUM(C68:F68)","v":1}]
[null,"네덜란드",2,1,2,null,5]
[null,"노르웨이",2,1,null,null,3]
[null,"덴마크",2,1,null,null,3]
[null,"그린란드(덴마크 관할지역)",1,null,null,null,1]
[null,"독일(본분관)",4,1,2,null,7]
[null,"러시아",10,null,5,3,18]
[null,"아르메니아(러시아 겸임국)",3,null,null,null,3]
[null,"루마니아",2,null,4,null,6]
[null,"벨기에",2,1,1,null,4]
[null,"벨라루스",2,null,1,null,3]
[null,"불가리아",6,null,1,null,7]
[null,"세르비아",4,null,null,null,4]
[null,"몬테네그로(세르비아 겸임국)",1,null,null,null,1]
[null,"스웨덴",2,1,null,null,3]
[null,"라트비아(라트비아 분관)",2,null,null,null,2]
[null,"스위스",2,1,null,null,3]
[null,"스페인",2,null,2,null,4]
[null,"슬로바키아",2,null,1,null,3]
[null,"아제르바이잔",4,null,3,null,7]
[null,"조지아(아제르바이잔 겸임국)",3,null,null,null,3]
[null,"아일랜드",2,null,null,null,2]
[null,"영국",4,null,2,null,6]
[null,"오스트리아",2,null,1,null,3]
[null,"슬로베니아(오스트리아 겸임국)",2,null,null,null,2]
[null,"우즈베키스탄",5,null,8,3,16,"국제협력선도대학 3명 포함"]
[null,"우크라이나",2,null,2,null,4]
[null,"몰도바(우크라이나 겸임국)",null,null,2,null,2]
[null,"이탈리아",4,1,2,null,7]
[null,"체코",2,null,null,null,2]
[null,"카자흐스탄(알마티분관)",5,null,6,3,14]
[null,"크로아티아",2,null,null,null,2]
[null,"보스니아헤르체고비나(크로아티아 겸임국)",1,null,null,null,{"$f":"SUM(C100:F100)","v":1},"신규배정"]
[null,"키르기스스탄",6,null,5,1,12]
[null,"타지키스탄",3,null,2,null,5]
[null,"터키",6,null,4,1,11]
[null,"투르크메니스탄",4,null,2,null,6]
[null,"포르투갈",2,null,null,null,2]
[null,"폴란드",2,null,4,null,6]
[null,"리투아니아(폴란드 겸임국)",null,null,2,null,2]
[null,"프랑스",3,2,2,null,7]
[null,"핀란드",3,null,1,null,4]
[null,"에스토니아(핀란드 겸임국)",1,null,null,null,1]
[null,"헝가리",3,null,3,null,6]
[null,"소계",{"$f":"SUM(C67:C111)","v":125},{"$f":"SUM(D67:D111)","v":10},{"$f":"SUM(E67:E111)","v":71},{"$f":"SUM(F67:F111)","v":11},{"$f":"SUM(G67:G111)","v":217}]
["중동","레바논",2,null,1,null,{"$f":"SUM(C113:F113)","v":3}]
[null,"시리아(레바논 겸임국)",1,null,null,null,{"$f":"SUM(C114:F114)","v":1}]
[null,"리비아",2,null,null,null,2]
[null,"모로코",4,null,2,null,6]
[null,"모리타니아(모로코 겸임국)",1,null,2,null,3]
[null,"바레인",1,null,null,null,1]
[null,"사우디아라비아",2,null,null,null,2]
[null,"아랍에미리트",1,null,null,null,1]
[null,"예멘",null,null,4,null,4]
[null,"오만",3,null,null,null,3]
[null,"요르단",3,null,2,null,5]
[null,"이라크",3,null,null,null,3]
[null,"이란",2,null,2,null,4]
[null,"이스라엘",4,null,1,null,5]
[null,"팔레스타인(사무소)",1,null,null,null,1]
[null,"이집트",4,null,4,null,8]
[null,"카타르",1,null,null,null,1]
[null,"쿠웨이트",2,null,null,null,2]
[null,"튀니지",4,null,null,null,4]
[null,"소계",{"$f":"SUM(C113:C131)","v":41},null,{"$f":"SUM(E113:E131)","v":18},null,59]
["아프\n리카","가나",5,null,5,1,{"$f":"SUM(C133:F133)","v":11}]
[null,"베넹(가나 겸임국)",1,null,null,null,{"$f":"SUM(C134:F134)","v":1}]
[null,"토고(가나 겸임국)",2,null,null,null,2]
[null,"가봉",3,null,1,null,4]
[null,"상투메프린시페(가봉 겸임국)",1,null,null,null,1]
[null,"적도기니(가봉 겸임국)",1,null,null,null,1]
[null,"나이지리아",4,null,5,2,11]
[null,"라이베리아(나이지리아 겸임국)",null,null,3,null,3,"에볼라발생국재배정"]
[null,"시에라리온(나이지리아 겸임국)",null,null,2,null,2,"에볼라발생국재배정"]
[null,"남아프리카공화국",3,null,null,null,3]
[null,"레소토(남아프리카공화국 겸임국)",1,null,null,null,1]
[null,"보츠와나(남아프리카공화국 겸임국)",2,null,null,null,2]
[null,"스와질랜드(남아프리카공화국 겸임국)",1,null,null,null,1]
[null,"마다가스카르(남아프리카공화국 겸임국)",1,null,null,null,1]
[null,"르완다",3,null,4,1,8]
[null,"부룬디(르완다 겸임국)",2,null,null,null,2]
[null,"세네갈",4,null,3,null,7]
[null,"감비아(세네갈 겸임국)",2,null,null,null,2]
[null,"기니(세네갈 겸임국)",null,null,3,null,3,"에볼라발생국재배정"]
[null,"기니비사우(세네갈 겸임국)",1,null,null,null,1]
[null,"말리(세네갈 겸임국)",1,null,null,null,1]
[null,"수단",3,null,1,null,4]
[null,"알제리",2,null,2,null,4]
[null,"앙골라",1,null,null,null,1]
[null,"나미비아(앙골라 겸임국)",1,null,null,null,1]
[null,"에티오피아",5,null,5,3,13]
[null,"세이셜(에티오피아 겸임국)",1,null,null,null,1]
[null,"지부티(에티오피아 겸임국)",1,null,null,null,1]
[null,"우간다",4,null,4,null,8]
[null,"짐바브웨",2,null,null,null,2]
[null,"말라위(짐바브웨 겸임국)",2,null,null,null,2]
[null,"모잠비크",2,null,null,null,2]
[null,"잠비아(짐바브웨 겸임국)",2,null,2,null,4]
[null,"카메룬",null,null,4,1,5]
[null,"중앙아프리카공화국(카메룬 겸임국)",1,null,null,null,1]
[null,"케냐",2,null,2,null,4]
[null,"모리셔스(케냐 겸임국)",1,null,null,null,1]
[null,"소말리아(케냐 겸임국)",1,null,null,null,1]
[null,"코모로(케냐 겸임국)",1,null,null,null,1,"신규배정"]
[null,"코트디부아르",4,null,null,null,4]
[null,"니제르(코트디부아르 겸임국)",1,null,null,null,1]
[null,"부르키나파소(코트디부아르 겸임국)",1,null,null,null,1]
[null,"콩고민주공화국",3,null,2,null,5]
[null,"콩고(콩고민주공화국 겸임국)",1,null,1,null,2]
[null,"탄자니아",3,null,4,1,8]
[null,"소계",{"$f":"SUM(C133:C177)","v":83},null,{"$f":"SUM(E133:E177)","v":53},9,145]
["합계",null,{"$f":"C34+C38+C112+C66+C132+C178","v":475},{"$f":"D34+D38+D112+D66+D132+D178","v":15},{"$f":"E34+E38+E112+E66+E132+E178","v":265},{"$f":"F34+F38+F112+F66+F132+F178","v":60},{"$f":"G34+G38+G112+G66+G132+G178","v":815}]
[null,null,"157개국","12개국","89개국","28개국","168개국"]
[null,"v 외교부 중점협력국 : 정책, 회담, 한국학, 자원외교 등 고려",null,null,null,"퀘벡 캐나다 포함 시 : 167개국"]
[null,"v 국제협력선도대학 : 고려대(우즈베키스탄 3명), 서강대(인도네시아 3명), 제주한라대(베트남 3명) 총 9명 포함"]
[null,"v 에볼라 발생국 재배정(라이베리아, 시에라리온, 기니)"]
[null,"v 기타 코모로, 보스니아헤르체고비나, 세인트키츠네비스 공관 1명 신규배정,"]